fUST/lending_fUST_20240723
["ID","MTS","AMOUNT","RATE_DAILY","PERIOD"]
[332906456,1721673033742,273.37336231,9.9e-05,2]
[332906468,1721673037895,-2287.14595956,0.00013676,2]
[332906469,1721673039154,-39404.64767074,0.00013676,2]
[332906470,1721673039168,-898.78971019,0.00013676,2]
[332906471,1721673039180,-1796.21426784,0.00013676,2]
[332906472,1721673039193,-17873.38670729,0.00013676,2]
[332906473,1721673039204,-21051.31692053,0.00013676,2]
[332906474,1721673039216,-9960.32224982,0.00013676,2]
[332906475,1721673039228,-2452.28297218,0.00013688,2]
[332906476,1721673039241,-42818.06987316,0.00013688,2]
[332906487,1721673040003,-3439.54392272,0.00013688,2]
[332906488,1721673040016,-1543.46033229,0.00013688,2]
[332906489,1721673040032,-6157.7395949,0.00013688,2]
[332906490,1721673040046,-1522.12104394,0.00013688,2]
[332906491,1721673040058,-394.43597965,0.00013688,2]
[332906492,1721673040069,-85398.63098816,0.00013688,2]
[332906493,1721673040079,-538.56,0.00013698,2]
[332906494,1721673040088,-515.04266821,0.00013698,2]
[332906495,1721673040099,-500.0,0.00013698,2]
[332906496,1721673040108,-500.0,0.00013698,2]
[332906497,1721673040117,-500.0,0.00013698,2]
[332906498,1721673040126,-500.0,0.00013698,2]
[332906499,1721673040136,-1953.9,0.00013698,2]
[332906500,1721673040145,-999.97,0.00013698,2]
[332906501,1721673040155,-500.0,0.00013698,2]
[332906502,1721673040165,-500.0,0.00013698,2]
[332906503,1721673040174,-500.0,0.00013698,2]
[332906504,1721673040183,-500.0,0.00013698,2]
[332906505,1721673040193,-500.0,0.00013698,2]
[332906506,1721673040202,-492.5160774,0.00013698,2]
[332906507,1721673040211,-500.0,0.00013698,2]
[332906508,1721673040222,-500.0,0.00013698,2]
[332906509,1721673040231,-500.0,0.00013698,2]
[332906510,1721673040240,-500.0,0.00013698,2]
[332906511,1721673040250,-500.0,0.00013698,2]
[332906512,1721673040259,-500.0,0.00013698,2]
[332906513,1721673040269,-500.0,0.00013698,2]
[332906514,1721673040278,-500.0,0.00013698,2]
[332906515,1721673040287,-500.0,0.00013698,2]
[332906516,1721673040296,-500.0,0.00013698,2]
[332906517,1721673040305,-158.62534684,0.00013698,2]
[332906518,1721673040314,-1491.64,0.00013698,2]
[332906519,1721673040323,-500.0,0.00013698,2]
[332906520,1721673040337,-500.0,0.00013698,2]
[332906521,1721673040346,-500.0,0.00013698,2]
[332906522,1721673040355,-500.0,0.00013698,2]
[332906523,1721673040364,-500.0,0.00013698,2]
[332906524,1721673040374,-500.0,0.00013698,2]
[332906525,1721673040383,-500.0,0.00013698,2]
[332906526,1721673040392,-502.35072442,0.00013698,2]
[332906527,1721673040402,-500.0,0.00013698,2]
[332906528,1721673040412,-1985.59,0.00013698,2]
[332906529,1721673040421,-314.65,0.00013698,2]
[332906530,1721673040430,-500.0,0.00013698,2]
[332906531,1721673040440,-500.0,0.00013698,2]
[332906532,1721673040450,-500.0,0.00013698,2]
[332906533,1721673040459,-582.4,0.00013698,2]
[332906534,1721673040469,-171.8999997,0.00013698,2]
[332906535,1721673040479,-401.36,0.00013698,2]
[332906536,1721673040488,-500.0,0.00013698,2]
[332906537,1721673040497,-500.0,0.00013698,2]
[332906538,1721673040507,-500.0,0.00013698,2]
[332906539,1721673040516,-181.63295852,0.00013698,2]
[332906540,1721673040525,-500.0,0.00013698,2]
[332906541,1721673040535,-500.0,0.00013698,2]
[332906542,1721673040544,-500.0,0.00013698,2]
[332906543,1721673040554,-288.19,0.00013698,2]
[332906544,1721673040563,-627.3,0.00013698,2]
[332906545,1721673040573,-500.0,0.00013698,2]
[332906546,1721673040585,-500.0,0.00013698,2]
[332906547,1721673040596,-286.36,0.00013698,2]
[332906548,1721673040605,-500.0,0.00013698,2]
[332906549,1721673040615,-473.63,0.00013698,2]
[332906550,1721673040625,-500.0,0.00013698,2]
[332906551,1721673040636,-323.6,0.00013698,2]
[332906552,1721673040647,-500.0,0.00013698,2]
[332906553,1721673040657,-208.28,0.00013698,2]
[332906554,1721673040667,-500.0,0.00013698,2]
[332906555,1721673040676,-500.0,0.00013698,2]
[332906556,1721673040686,-500.0,0.00013698,2]
[332906557,1721673040697,-500.0,0.00013698,2]
[332906558,1721673040707,-500.0,0.00013698,2]
[332906559,1721673040716,-2507.95,0.00013698,2]
[332906560,1721673040727,-163.32,0.00013698,2]
[332906561,1721673040736,-500.0,0.00013698,2]
[332906562,1721673040746,-615.51,0.00013698,2]
[332906563,1721673040756,-500.0,0.00013698,2]
[332906564,1721673040766,-500.0,0.00013698,2]
[332906565,1721673040777,-500.0,0.00013698,2]
[332906566,1721673040786,-500.0,0.00013698,2]
[332906567,1721673040796,-500.0,0.00013698,2]
[332906568,1721673040806,-500.0,0.00013698,2]
[332906569,1721673040817,-500.0,0.00013698,2]
[332906570,1721673040827,-500.0,0.00013698,2]
[332906571,1721673040837,-500.0,0.00013698,2]
[332906572,1721673040847,-500.0,0.00013698,2]
[332906573,1721673040857,-500.0,0.00013698,2]
[332906574,1721673040866,-500.0,0.00013698,2]
[332906575,1721673040875,-500.0,0.00013698,2]
[332906576,1721673040885,-500.0,0.00013698,2]
[332906577,1721673040895,-323.24111165,0.00013698,2]
[332906578,1721673040904,-500.0,0.00013698,2]
[332906579,1721673040913,-500.0,0.00013698,2]
[332906580,1721673040922,-500.0,0.00013698,2]
[332906581,1721673040931,-306.60221908,0.00013698,2]
[332906582,1721673040941,-500.0,0.00013698,2]
[332906583,1721673040950,-500.0,0.00013698,2]
[332906584,1721673040959,-500.0,0.00013698,2]
[332906585,1721673040969,-500.0,0.00013698,2]
[332906586,1721673040979,-500.0,0.00013698,2]
[332906587,1721673040989,-500.0,0.00013698,2]
[332906588,1721673040999,-500.0,0.00013698,2]
[332906589,1721673041008,-500.0,0.00013698,2]
[332906590,1721673041018,-500.0,0.00013698,2]
[332906591,1721673041027,-500.0,0.00013698,2]
[332906592,1721673041036,-500.0,0.00013698,2]
[332906593,1721673041046,-500.0,0.00013698,2]
[332906594,1721673041056,-500.0,0.00013698,2]
[332906595,1721673041065,-191.26408409,0.00013698,2]
[332906596,1721673041075,-507.0263962,0.00013698,2]
[332906597,1721673041085,-500.0,0.00013698,2]
[332906598,1721673041231,-500.0,0.00013698,2]
[332906599,1721673041244,-500.0,0.00013698,2]
[332906600,1721673041255,-500.0,0.00013698,2]
[332906601,1721673041265,-500.0,0.00013698,2]
[332906602,1721673041274,-500.0,0.00013698,2]
[332906603,1721673041283,-500.0,0.00013698,2]
[332906604,1721673041293,-500.0,0.00013698,2]
[332906605,1721673041303,-500.0,0.00013698,2]
[332906606,1721673041313,-500.0,0.00013698,2]
[332906607,1721673041323,-502.74,0.00013698,2]
[332906608,1721673041335,-500.0,0.00013698,2]
[332906609,1721673041346,-500.0,0.00013698,2]
[332906610,1721673041356,-500.0,0.00013698,2]
[332906611,1721673041367,-500.0,0.00013698,2]
[332906612,1721673041378,-500.0,0.00013698,2]
[332906613,1721673041391,-500.0,0.00013698,2]
[332906614,1721673041403,-500.0,0.00013698,2]
[332906615,1721673041415,-500.0,0.00013698,2]
[332906616,1721673041425,-500.0,0.00013698,2]
[332906617,1721673041435,-500.0,0.00013698,2]
[332906618,1721673041446,-500.0,0.00013698,2]
[332906619,1721673041456,-492.38,0.00013698,2]
[332906620,1721673041468,-378.46151837,0.00013698,2]
[332906621,1721673041479,-500.0,0.00013698,2]
[332906622,1721673041489,-500.0,0.00013698,2]
[332906623,1721673041500,-500.0,0.00013698,2]
[332906624,1721673041511,-500.0,0.00013698,2]
[332906625,1721673041522,-500.0,0.00013698,2]
[332906626,1721673041532,-500.0,0.00013698,2]
[332906627,1721673041543,-500.0,0.00013698,2]
[332906628,1721673041554,-500.0,0.00013698,2]
[332906629,1721673041564,-610.22013749,0.00013698,2]
[332906630,1721673041575,-500.0,0.00013698,2]
[332906631,1721673041586,-617.06,0.00013698,2]
[332906632,1721673041598,-500.0,0.00013698,2]
[332906633,1721673041610,-500.0,0.00013698,2]
[332906634,1721673041620,-500.0,0.00013698,2]
[332906635,1721673041629,-500.0,0.00013698,2]
[332906636,1721673041641,-500.0,0.00013698,2]
[332906637,1721673041652,-500.0,0.00013698,2]
[332906638,1721673041662,-2360.04,0.00013698,2]
[332906639,1721673041672,-2360.04,0.00013698,2]
[332906640,1721673041682,-2360.04,0.00013698,2]
[332906641,1721673041692,-2360.04,0.00013698,2]
[332906642,1721673041702,-2360.04,0.00013698,2]
[332906643,1721673041713,-500.0,0.00013698,2]
[332906644,1721673041723,-2360.04,0.00013698,2]
[332906645,1721673041735,-2360.04,0.00013698,2]
[332906646,1721673041744,-2360.04,0.00013698,2]
[332906647,1721673041755,-2360.04,0.00013698,2]
[332906648,1721673041766,-2360.04,0.00013698,2]
[332906649,1721673041777,-503.72147418,0.00013698,2]
[332906650,1721673041788,-2360.04,0.00013698,2]
[332906651,1721673041798,-500.0,0.00013698,2]
[332906652,1721673041807,-500.0,0.00013698,2]
[332906653,1721673041817,-500.0,0.00013698,2]
[332906654,1721673041828,-503.43822199,0.00013698,2]
[332906655,1721673041838,-500.0,0.00013698,2]
[332906656,1721673041848,-500.0,0.00013698,2]
[332906657,1721673041858,-500.0,0.00013698,2]
[332906658,1721673041867,-503.91386511,0.00013698,2]
[332906659,1721673041877,-500.0,0.00013698,2]
[332906660,1721673041887,-500.0,0.00013698,2]
[332906661,1721673041897,-500.0,0.00013698,2]
[332906662,1721673041907,-500.0,0.00013698,2]
[332906663,1721673041917,-500.0,0.00013698,2]
[332906664,1721673041927,-500.0,0.00013698,2]
[332906665,1721673041937,-500.0,0.00013698,2]
[332906666,1721673041947,-500.0,0.00013698,2]
[332906667,1721673041957,-500.0,0.00013698,2]
[332906668,1721673041967,-500.0,0.00013698,2]
[332906669,1721673041978,-500.0,0.00013698,2]
[332906670,1721673041989,-500.0,0.00013698,2]
[332906671,1721673041999,-500.0,0.00013698,2]
[332906672,1721673042009,-585.07,0.00013698,2]
[332906673,1721673042019,-544.32,0.00013698,2]
[332906674,1721673042030,-500.0,0.00013698,2]
[332906675,1721673042041,-500.0,0.00013698,2]
[332906676,1721673042051,-500.0,0.00013698,2]
[332906677,1721673042061,-500.0,0.00013698,2]
[332906678,1721673042071,-500.0,0.00013698,2]
[332906679,1721673042082,-500.0,0.00013698,2]
[332906680,1721673042092,-500.0,0.00013698,2]
[332906681,1721673042102,-500.0,0.00013698,2]
[332906682,1721673042115,-500.0,0.00013698,2]
[332906683,1721673042125,-500.0,0.00013698,2]
[332906684,1721673042134,-210.1,0.00013698,2]
[332906685,1721673042145,-500.0,0.00013698,2]
[332906686,1721673042155,-500.0,0.00013698,2]
[332906687,1721673042165,-500.0,0.00013698,2]
[332906688,1721673042175,-500.0,0.00013698,2]
[332906689,1721673042184,-507.13,0.00013698,2]
[332906690,1721673042194,-500.0,0.00013698,2]
[332906692,1721673042204,-508.14216732,0.00013698,2]
[332906693,1721673042214,-500.0,0.00013698,2]
[332906694,1721673042224,-500.0,0.00013698,2]
[332906695,1721673042235,-500.0,0.00013698,2]
[332906696,1721673042245,-500.0,0.00013698,2]
[332906697,1721673042255,-500.0,0.00013698,2]
[332906698,1721673042265,-500.0,0.00013698,2]
[332906699,1721673042275,-500.0,0.00013698,2]
[332906700,1721673042285,-500.0,0.00013698,2]
[332906701,1721673042295,-500.000001,0.00013698,2]
[332906702,1721673042304,-500.0,0.00013698,2]
[332906703,1721673042313,-530.16,0.00013698,2]
[332906704,1721673042324,-500.0,0.00013698,2]
[332906705,1721673042338,-500.0,0.00013698,2]
[332906706,1721673042350,-500.0,0.00013698,2]
[332906708,1721673042361,-500.0,0.00013698,2]
[332906710,1721673042370,-500.0,0.00013698,2]
[332906713,1721673042383,-500.0,0.00013698,2]
[332906714,1721673042394,-500.0,0.00013698,2]
[332906716,1721673042403,-500.0,0.00013698,2]
[332906717,1721673042417,-500.0,0.00013698,2]
[332906718,1721673042427,-500.0,0.00013698,2]
[332906719,1721673042436,-545.3,0.00013698,2]
[332906720,1721673042446,-500.0,0.00013698,2]
[332906721,1721673042456,-266.44,0.00013698,2]
[332906722,1721673042466,-500.0,0.00013698,2]
[332906723,1721673042476,-503.66852271,0.00013698,2]
[332906724,1721673042486,-511.87,0.00013698,2]
[332906725,1721673042495,-500.0,0.00013698,2]
[332906726,1721673042506,-500.0,0.00013698,2]
[332906727,1721673042516,-500.0,0.00013698,2]
[332906728,1721673042525,-500.0,0.00013698,2]
[332906730,1721673042535,-500.0,0.00013698,2]
[332906731,1721673042546,-401.78,0.00013698,2]
[332906732,1721673042557,-500.0,0.00013698,2]
[332906733,1721673042567,-500.0,0.00013698,2]
[332906734,1721673042578,-535.32,0.00013698,2]
[332906735,1721673042590,-500.0,0.00013698,2]
[332906736,1721673042600,-500.0,0.00013698,2]
[332906737,1721673042610,-500.0,0.00013698,2]
[332906738,1721673042620,-500.0,0.00013698,2]
[332906739,1721673042631,-500.0,0.00013698,2]
[332906740,1721673042642,-500.0,0.00013698,2]
[332906741,1721673042652,-500.0,0.00013698,2]
[332906742,1721673042663,-500.0,0.00013698,2]
[332906744,1721673042673,-500.0,0.00013698,2]
[332906746,1721673042683,-232.94306869,0.00013698,2]
[332906747,1721673042692,-500.0,0.00013698,2]
[332906748,1721673042703,-500.0,0.00013698,2]
[332906750,1721673042713,-503.64069599,0.00013698,2]
[332906752,1721673042724,-500.0,0.00013698,2]
[332906753,1721673042734,-500.0,0.00013698,2]
[332906754,1721673042743,-500.0,0.00013698,2]
[332906755,1721673042753,-434.67,0.00013698,2]
[332906756,1721673042763,-500.0,0.00013698,2]
[332906757,1721673042773,-500.0,0.00013698,2]
[332906758,1721673042782,-500.0,0.00013698,2]
[332906759,1721673042792,-500.0,0.00013698,2]
[332906760,1721673042802,-500.0,0.00013698,2]
[332906761,1721673042812,-500.0,0.00013698,2]
[332906762,1721673042823,-216.29382575,0.00013698,2]
[332906764,1721673042833,-500.0,0.00013698,2]
[332906765,1721673042842,-500.0,0.00013698,2]
[332906766,1721673042852,-500.0,0.00013698,2]
[332906767,1721673042864,-500.0,0.00013698,2]
[332906768,1721673042874,-500.0,0.00013698,2]
[332906769,1721673042883,-500.0,0.00013698,2]
[332906770,1721673042895,-500.0,0.00013698,2]
[332906771,1721673042906,-500.0,0.00013698,2]
[332906772,1721673042916,-500.0,0.00013698,2]
[332906773,1721673042926,-500.0,0.00013698,2]
[332906774,1721673042937,-521.87931672,0.00013698,2]
[332906775,1721673042947,-500.0,0.00013698,2]
[332906776,1721673042957,-500.0,0.00013698,2]
[332906777,1721673042968,-500.0,0.00013698,2]
[332906778,1721673042981,-500.0,0.00013698,2]
[332906779,1721673042991,-500.0,0.00013698,2]
[332906780,1721673043001,-500.0,0.00013698,2]
[332906781,1721673043011,-500.0,0.00013698,2]
[332906782,1721673043021,-500.0,0.00013698,2]
[332906783,1721673043031,-443.13917669,0.00013698,2]
[332906784,1721673043130,273.37336231,9.9e-05,2]
[332906785,1721673043160,-56.86082331,0.00013698,2]
[332906786,1721673043171,-294.98,0.00013698,2]
[332906787,1721673043181,-637.55,0.00013698,2]
[332906788,1721673043191,-500.0,0.00013698,2]
[332906789,1721673043203,-311.34949191,0.00013698,2]
[332906805,1721673046636,-188.65050809,0.00013698,2]
[332906806,1721673046646,-148.969815,0.00013698,2]
[332906807,1721673046779,-351.030185,0.00013698,2]
[332906808,1721673046789,-500.0,0.00013698,2]
[332906809,1721673046798,-500.0,0.00013698,2]
[332906810,1721673046808,-500.0,0.00013698,2]
[332906811,1721673046817,-500.0,0.00013698,2]
[332906812,1721673046827,-500.0,0.00013698,2]
[332906813,1721673046835,-500.0,0.00013698,2]
[332906814,1721673046845,-500.0,0.00013698,2]
[332906815,1721673046854,-500.0,0.00013698,2]
[332906816,1721673046863,-178.99459703,0.00013698,2]
[332906817,1721673046872,-500.0,0.00013698,2]
[332906818,1721673046881,-500.0,0.00013698,2]
[332906819,1721673046890,-500.0,0.00013698,2]
[332906820,1721673046899,-500.0,0.00013698,2]
[332906821,1721673046909,-500.0,0.00013698,2]
[332906822,1721673046918,-500.0,0.00013698,2]
[332906823,1721673046927,-500.0,0.00013698,2]
[332906824,1721673046937,-500.0,0.00013698,2]
[332906825,1721673046946,-500.0,0.00013698,2]
[332906826,1721673046955,-500.0,0.00013698,2]
[332906827,1721673046964,-500.0,0.00013698,2]
[332906828,1721673046974,-500.0,0.00013698,2]
[332906829,1721673046983,-500.0,0.00013698,2]
[332906830,1721673046992,-500.0,0.00013698,2]
[332906831,1721673047001,-500.0,0.00013698,2]
[332906832,1721673047011,-500.0,0.00013698,2]
[332906833,1721673047020,-303.96349004,0.00013698,2]
[332906834,1721673047030,-542.29,0.00013698,2]
[332906835,1721673047040,-500.0,0.00013698,2]
[332906836,1721673047050,-500.0,0.00013698,2]
[332906837,1721673047059,-500.0,0.00013698,2]
[332906838,1721673047068,-491.77934766,0.00013698,2]
[332906839,1721673047079,-160.59,0.00013698,2]
[332906840,1721673047088,-536.85,0.00013698,2]
[332906841,1721673047099,-518.55,0.00013698,2]
[332906842,1721673047108,-500.0,0.00013698,2]
[332906843,1721673047118,-171.17220993,0.00013698,2]
[332906844,1721673047129,-500.0,0.00013698,2]
[332906845,1721673047139,-500.0,0.00013698,2]
[332906846,1721673047150,-500.0,0.00013698,2]
[332906847,1721673047160,-500.0,0.00013698,2]
[332906848,1721673047171,-582.74,0.00013698,2]
[332906849,1721673047180,-500.0,0.00013698,2]
[332906850,1721673047190,-510.73957969,0.00013698,2]
[332906851,1721673047199,-610.34,0.00013698,2]
[332906852,1721673047250,-500.0,0.00013698,2]
[332906853,1721673047259,-500.0,0.00013698,2]
[332906854,1721673047268,-500.0,0.00013698,2]
[332906855,1721673047277,-500.0,0.00013698,2]
[332906856,1721673047287,-500.0,0.00013698,2]
[332906857,1721673047297,-502.71235514,0.00013698,2]
[332906858,1721673047308,-242.53895911,0.00013698,2]
[332906859,1721673047318,-500.0,0.00013698,2]
[332906860,1721673047328,-500.0,0.00013698,2]
[332906861,1721673047342,-500.0,0.00013698,2]
[332906862,1721673047352,-500.0,0.00013698,2]
[332906863,1721673047362,-500.0,0.00013698,2]
[332906864,1721673047374,-500.0,0.00013698,2]
[332906865,1721673047385,-500.0,0.00013698,2]
[332906866,1721673047396,-500.0,0.00013698,2]
[332906867,1721673047405,-500.0,0.00013698,2]
[332906868,1721673047415,-500.0,0.00013698,2]
[332906869,1721673047429,-500.0,0.00013698,2]
[332906870,1721673047438,-500.0,0.00013698,2]
[332906871,1721673047449,-500.0,0.00013698,2]
[332906872,1721673047459,-500.0,0.00013698,2]
[332906873,1721673047470,-500.0,0.00013698,2]
[332906874,1721673047482,-500.0,0.00013698,2]
[332906875,1721673047492,-67.88690116,0.00013698,2]
[332906876,1721673049891,273.37336231,9.9e-05,2]
[332906877,1721673052263,375.50874833,0.00012,2]
[332906878,1721673059044,273.37336231,9.9e-05,2]
[332906879,1721673067548,273.37336231,9.9e-05,2]
[332906880,1721673075741,273.37336231,9.9e-05,2]
[332906881,1721673083809,273.37336231,9.9e-05,2]
[332906882,1721673092279,273.37336231,9.9e-05,2]
[332906884,1721673100461,273.37336231,9.9e-05,2]
[332906886,1721673116309,273.37336231,9.9e-05,2]
[332906887,1721673124549,273.37336231,9.9e-05,2]
[332906888,1721673134076,273.37336231,9.9e-05,2]
[332906889,1721673140668,663.18017951,0.00012,2]
[332906890,1721673142410,273.37336231,9.9e-05,2]
[332906891,1721673150842,273.37336231,9.9e-05,2]
[332906895,1721674025143,-3237.45894482,9.801e-05,2]
[332906896,1721674025165,-4707.50365433,9.9e-05,2]
[332906897,1721674025188,-300.0,9.998e-05,2]
[332906898,1721674025210,-300.0,9.998e-05,2]
[332906899,1721674025232,-248.68489287,9.999e-05,2]
[332906900,1721674025420,-154.91828839,9.999e-05,2]
[332906901,1721674025445,-156.52466612,9.999e-05,2]
[332906902,1721674025468,-352.46310543,9.999e-05,2]
[332906903,1721674025490,-542.35957529,9.999e-05,2]
[332906904,1721674025514,-341.48992898,9.999e-05,2]
[332906905,1721674025540,-226.18550039,9.999e-05,2]
[332906906,1721674025562,-156.43671221,9.999e-05,2]
[332906907,1721674025587,-726.15353631,9.999e-05,2]
[332906908,1721674025608,-159.76779207,9.999e-05,2]
[332906909,1721674025630,-287.30766407,0.0001,2]
[332906910,1721674025655,-250.0,0.00010538,2]
[332906911,1721674025681,-250.0,0.00010567,2]
[332906912,1721674025711,-250.0,0.00010596,2]
[332906913,1721674025737,-250.0,0.00010625,2]
[332906914,1721674025762,-250.0,0.00010654,2]
[332906915,1721674025786,-250.0,0.00010682,2]
[332906916,1721674025811,-250.0,0.00010711,2]
[332906917,1721674025839,-250.0,0.0001074,2]
[332906918,1721674025864,-250.0,0.00010769,2]
[332906919,1721674025888,-24900.0,0.00010789,2]
[332906920,1721674025911,-250.0,0.00010798,2]
[332906921,1721674025935,-250.0,0.00010827,2]
[332906922,1721674025956,-250.0,0.00010853,2]
[332906923,1721674025981,-250.0,0.00010856,2]
[332906924,1721674026006,-250.0,0.00010885,2]
[332906925,1721674026030,-250.0,0.00010914,2]
[332906926,1721674026055,-250.0,0.00010943,2]
[332906927,1721674026080,-250.0,0.00010971,2]
[332906928,1721674026102,-420.0,0.00010998,2]
[332906929,1721674026126,-180.0,0.00010998,2]
[332906930,1721674026151,-250.0,0.00011,2]
[332906931,1721674026175,-250.0,0.00011029,2]
[332906932,1721674026200,-250.0,0.00011058,2]
[332906933,1721674026223,-250.0,0.00011087,2]
[332906934,1721674026244,-705.23989656,0.00012961,2]
[332906935,1721674026266,-586.9335157,0.00013178,2]
[332906936,1721674026287,-150.112233,0.000132,5]
[332906937,1721674026310,-150.112233,0.000133,2]
[332906938,1721674026333,-251.75437026,0.000134,2]
[332906939,1721674026355,-200.0,0.00013425,2]
[332906940,1721674026377,-150.0,0.00013455,2]
[332906941,1721674026399,-150.0,0.000135,2]
[332906942,1721674026420,-5132.1600503,0.00013544,2]
[332906943,1721674026442,-287.28224255,0.00013561,2]
[332906944,1721674026466,-1468.09275728,0.00013588,2]
[332906945,1721674026490,-887.39339376,0.00013598,2]
[332906946,1721674026515,-8776.25799093,0.000136,2]
[332906947,1721674026541,-150.112233,0.000136,2]
[332906948,1721674026564,-1468.09275725,0.00013656,2]
[332906949,1721674026589,-128982.60489613,0.00013688,2]
[332906950,1721674029155,-500.0,0.00013688,2]
[332906951,1721674035097,-513.47474124,0.00013688,2]
[332906952,1721674045141,-1279.64846335,0.00013688,2]
[332906960,1721674153089,-341.48992898,9.999e-05,2]
[332906961,1721674153110,-542.48310742,9.999e-05,2]
[332906962,1721674153131,-202.68178171,9.999e-05,2]
[332906963,1721674204454,541.75583421,0.0001212,2]
[332906996,1721674233535,-2000.0,0.00013588,2]
[332906997,1721674233545,-880.85565435,0.00013598,2]
[332906998,1721674233556,-880.85565435,0.00013666,2]
[332906999,1721674233566,-13168.68968795,0.00013688,2]
[332907000,1721674233579,-545.87563572,0.00013688,2]
[332907040,1721674238727,-123778.61218433,0.00013688,2]
[332907041,1721674238738,-432.11309884,0.00013698,2]
[332907042,1721674238748,-500.0,0.00013698,2]
[332907043,1721674238758,-500.0,0.00013698,2]
[332907044,1721674238769,-488.59552143,0.00013698,2]
[332907045,1721674238778,-500.0,0.00013698,2]
[332907046,1721674238788,-524.75018145,0.00013698,2]
[332907047,1721674238797,-500.0,0.00013698,2]
[332907048,1721674238807,-500.0,0.00013698,2]
[332907049,1721674238817,-538.62111057,0.00013698,2]
[332907050,1721674238827,-500.0,0.00013698,2]
[332907051,1721674238837,-500.0,0.00013698,2]
[332907052,1721674238846,-513.23583823,0.00013698,2]
[332907053,1721674238856,-500.0,0.00013698,2]
[332907054,1721674238865,-500.0,0.00013698,2]
[332907055,1721674238875,-500.0,0.00013698,2]
[332907056,1721674238885,-500.0,0.00013698,2]
[332907057,1721674238895,-500.0,0.00013698,2]
[332907058,1721674238905,-500.0,0.00013698,2]
[332907059,1721674238915,-500.0,0.00013698,2]
[332907060,1721674238926,-500.0,0.00013698,2]
[332907061,1721674238936,-613.68437412,0.00013698,2]
[332907062,1721674238946,-500.0,0.00013698,2]
[332907063,1721674238956,-507.61720522,0.00013698,2]
[332907064,1721674238966,-522.44,0.00013698,2]
[332907065,1721674238976,-333.05218136,0.00013698,2]
[332907066,1721674238985,-500.0,0.00013698,2]
[332907067,1721674238995,-500.0,0.00013698,2]
[332907068,1721674239005,-480.33,0.00013698,2]
[332907069,1721674239017,-634.91050721,0.00013698,2]
[332907070,1721674239026,-318.18026422,0.00013698,2]
[332907071,1721674239036,-502.40109538,0.00013698,2]
[332907072,1721674239045,-500.0,0.00013698,2]
[332907073,1721674239055,-500.0,0.00013698,2]
[332907074,1721674239064,-500.0,0.00013698,2]
[332907075,1721674239074,-521.74,0.00013698,2]
[332907076,1721674239084,-616.18342409,0.00013698,2]
[332907077,1721674239093,-500.0,0.00013698,2]
[332907078,1721674239103,-500.0,0.00013698,2]
[332907079,1721674239112,-503.3907054,0.00013698,2]
[332907080,1721674239122,-500.0,0.00013698,2]
[332907081,1721674239131,-500.0,0.00013698,2]
[332907082,1721674239141,-505.61133356,0.00013698,2]
[332907083,1721674239151,-500.0,0.00013698,2]
[332907084,1721674239162,-500.0,0.00013698,2]
[332907085,1721674239172,-500.0,0.00013698,2]
[332907086,1721674239183,-500.0,0.00013698,2]